[Event "FIDE WYCC Open U14 2023"]
[Site "Montesilvano"]
[Date "2023.11.24"]
[Round "11.2"]
[White "Bharadia Yash"]
[Black "Mamedov, Edgar"]
[Result "1/2-1/2"]
[ECO "B33"]
[WhiteElo "2071"]
[BlackElo "2234"]
[Annotator "RC"]
[PlyCount "165"]
[EventDate "2023.11.13"]
[EventType "swiss"]
[EventCountry "ITA"]
[SourceTitle "playchess.com"]
[Source "ChessBase"]
[SourceQuality "1"]
[TimeControl "40/5400+30:1800+30"]

1. e4 {[%emt 0:00:08]} c5 {[%emt 0:00:14]} 2. Nf3 {[%emt 0:00:06]} Nc6 {[%emt 0:00:23]} 3. d4 {[%emt 0:00:13]} cxd4 {[%emt 0:00:06]} 4. Nxd4 {[%emt 0:00:06]} Nf6 {[%emt 0:00:12]} 5. Nc3 {[%emt 0:00:05]} e5 {[%emt 0:00:13]} 6. Ndb5 {[%emt 0:00:05]} d6 {[%emt 0:00:17]} 7. Bg5 {[%emt 0:00:06]} a6 {[%emt 0:00:15]} 8. Na3 {[%emt 0:00:09]} b5 {[%emt 0:00:19]} 9. Bxf6 {[%emt 0:00:06]} gxf6 {[%emt 0:00:12]} 10. Nd5 {[%emt 0:00:04]} f5 {[%emt 0:00:35]} 11. g3 {[%emt 0:01:07]} fxe4 {[%emt 0:03:10]} 12. Bg2 {[%emt 0:00:12]} Bg7 {[%emt 0:09:33]} 13. Bxe4 {[%emt 0:00:11]} Be6 {[%emt 0:01:11]} 14. c3 {[%emt 0:07:39]} O-O {[%emt 0:04:48]} 15. Nc2 {[%emt 0:01:22]} Rc8 {[%emt 0:04:08]} 16. O-O {[%emt 0:01:43]} f5 {[%emt 0:07:12]} 17. Bg2 {[%emt 0:00:17]} Kh8 {[%emt 0:05:53]} 18. a4 {[%emt 0:04:08]} bxa4 {[%emt 0:13:31]} 19. Rxa4 {[%emt 0:01:31]} a5 {[%emt 0:00:42]} 20. Nce3 {[%emt 0:04:03]} Rb8 {[%emt 0:04:05]} 21. Qe2 {[%emt 0:11:59]} Qd7 {[%emt 0:09:28]} 22. Rh4 {[%emt 0:02:25]} Qf7 {[%emt 0:04:25]} 23. Rd1 {[%emt 0:03:34]} Ne7 {[%emt 0:05:56]} 24. Nc7 {[%emt 0:18:32]} Ng6 {[%emt 0:09:01]} 25. Nxe6 {[%emt 0:02:07]} Qxe6 {[%emt 0:02:31]} 26. Bd5 {[%emt 0:02:32]} Qf6 {[%emt 0:00:55]} 27. Rh5 {[%emt 0:07:18]} Ne7 {[%emt 0:00:07]} 28. Nc4 {[%emt 0:00:31]} e4 {[%emt 0:04:09]} 29. Nxd6 {[%emt 0:09:41]} Qxd6 {[%emt 0:05:22]} 30. Rxh7+ {[%emt 0:00:15]} Kxh7 {[%emt 0:00:04]} 31. Bg8+ {[%emt 0:00:05]} Nxg8 {[%emt 0:00:24]} 32. Rxd6 {[%emt 0:00:08]} Nf6 {[%emt 0:00:49]} 33. Ra6 {[%emt 0:01:46]} Ng4 {[%emt 0:01:35]} 34. Rxa5 {[%emt 0:03:31]} Ne5 {[%emt 0:01:04]} 35. Kg2 {[%emt 0:01:37]} Rbd8 {[%emt 0:03:27]} 36. Qh5+ {[%emt 0:04:08]} Kg8 {[%emt 0:00:01]} 37. Ra7 {[%emt 0:03:29]} Rd6 {[%emt 0:00:09]} 38. Ra5 {[%emt 0:09:26]} Rh6 {[%emt 0:01:00]} 39. Qd1 {[%emt 0:01:20]} Nf3 {[%emt 0:01:09]} 40. h4 {[%emt 0:00:00]} Kh7 {[%emt 0:00:00]} 41. Qd7 {[%emt 0:01:49]} Rhf6 {[%emt 0:06:37]} 42. Ra7 {[%emt 0:07:47]} Rg6 {[%emt 0:01:41]} 43. Qe7 {[%emt 0:03:18]} Kh6 {[%emt 0:01:52]} 44. h5 {[%emt 0:05:16]} Rg5 {[%emt 0:07:21]} 45. Qe6+ {[%emt 0:02:22]} Kxh5 {[%emt 0:02:36]} 46. Ra1 {[%emt 0:00:46]} Nh4+ {[%emt 0:09:02]} 47. Kf1 {[%emt 0:00:13]} Nf3 {[%emt 0:00:18]} 48. Ke2 {[%emt 0:01:00]} Rb8 {[%emt 0:01:16]} 49. Rh1+ {[%emt 0:02:31]} Kg4 {[%emt 0:00:01]} 50. Qd6 {[%emt 0:01:11]} Rxb2+ {[%emt 0:00:35]} 51. Ke3 {[%emt 0:00:42]} Bd4+ {[%emt 0:01:11]} 52. cxd4 {[%emt 0:00:21]} Rb3+ {[%emt 0:00:06]} 53. Ke2 {[%emt 0:00:03]} Rb2+ {[%emt 0:00:10]} 54. Kf1 {[%emt 0:00:27]} Rb1+ {[%emt 0:00:27]} 55. Kg2 {[%emt 0:00:22]} Rxh1 {[%emt 0:00:40]} 56. Qf4+ {[%emt 0:00:10]} Kh5 {[%emt 0:00:06]} 57. Kxh1 {[%emt 0:00:04]} Nxd4 {[%emt 0:00:11]} 58. Qc7 {[%emt 0:03:10]} Nf3 {[%emt 0:02:41]} 59. Qh7+ {[%emt 0:00:13]} Kg4 {[%emt 0:00:02]} 60. Kg2 {[%emt 0:00:22]} Ne1+ {[%emt 0:00:21]} 61. Kf1 {[%emt 0:00:20]} Nf3 {[%emt 0:00:05]} 62. Qf7 {[%emt 0:04:57]} Rh5 {[%emt 0:03:39]} 63. Qg6+ {[%emt 0:03:20]} Rg5 {[%emt 0:00:02]} 64. Qd6 {[%emt 0:01:02]} Kh5 {[%emt 0:01:17]} 65. Ke2 {[%emt 0:01:00]} Kg4 {[%emt 0:00:34]} 66. Ke3 {[%emt 0:00:55]} Kh3 {[%emt 0:00:26]} 67. Qh6+ {[%emt 0:01:04]} Kg2 {[%emt 0:00:34]} 68. Qh7 {[%emt 0:01:08]} Ng1 {[%emt 0:00:35]} 69. Qh6 {[%emt 0:00:29]} Nf3 {[%emt 0:00:30]} 70. Qb6 {[%emt 0:00:13]} Rg4 {[%emt 0:00:57]} 71. Qa7 {[%emt 0:00:44]} Rg5 {[%emt 0:00:26]} 72. Kf4 {[%emt 0:00:04]} Kf1 {[%emt 0:00:14]} 73. g4 {[%emt 0:00:40]} Rxg4+ {[%emt 0:00:19]} 74. Kxf5 {[%emt 0:00:04]} Rh4 {[%emt 0:00:05]} 75. Qe3 {[%emt 0:00:24]} Kg2 {[%emt 0:00:10]} 76. Ke6 {[%emt 0:00:46]} Rh1 {[%emt 0:00:55]} 77. Kd5 {[%emt 0:00:14]} Rd1+ {[%emt 0:00:39]} 78. Kc4 {[%emt 0:00:13]} Re1 {[%emt 0:00:22]} 79. Qb6 {[%emt 0:00:32]} Rd1 {[%emt 0:00:38]} 80. Qa7 {[%emt 0:00:38]} Rd4+ {[%emt 0:00:09]} 81. Qxd4 {[%emt 0:00:53]} Nxd4 {[%emt 0:00:06]} 82. Kxd4 {[%emt 0:00:03]} Kxf2 {[%emt 0:00:10]} 83. Kxe4 {[%emt 0:00:04]} 1/2-1/2

[Event "FIDE WYCC Open U14 2023"]
[Site "Montesilvano"]
[Date "2023.11.24"]
[Round "11.3"]
[White "Pham Tran Gia Phuc"]
[Black "Uskov, Artem"]
[Result "1/2-1/2"]
[ECO "D02"]
[WhiteElo "2386"]
[BlackElo "2380"]
[Annotator "RC"]
[PlyCount "107"]
[EventDate "2023.11.13"]
[EventType "swiss"]
[EventCountry "ITA"]
[SourceTitle "playchess.com"]
[Source "ChessBase"]
[SourceQuality "1"]
[TimeControl "40/5400+30:1800+30"]

1. d4 {[%emt 0:00:02]} Nf6 {[%emt 0:01:31]} 2. Bf4 {[%emt 0:00:13]} d5 {[%emt 0:00:06]} 3. Nf3 {[%emt 0:00:04]} c5 {[%emt 0:00:04]} 4. e3 {[%emt 0:00:03]} Nc6 {[%emt 0:00:06]} 5. Nbd2 {[%emt 0:00:03]} e6 {[%emt 0:00:06]} 6. c3 {[%emt 0:00:02]} Nh5 {[%emt 0:00:06]} 7. Bg5 {[%emt 0:00:02]} f6 {[%emt 0:00:06]} 8. Bh4 {[%emt 0:00:02]} g6 {[%emt 0:00:07]} 9. Be2 {[%emt 0:00:02]} Ng7 {[%emt 0:00:33]} 10. O-O {[%emt 0:00:06]} Nf5 {[%emt 0:00:05]} 11. Bg3 {[%emt 0:00:02]} Kf7 {[%emt 0:02:04]} 12. dxc5 {[%emt 0:05:42]} Bxc5 {[%emt 0:01:17]} 13. b4 {[%emt 0:00:28]} Be7 {[%emt 0:05:43]} 14. Qb3 {[%emt 0:12:24]} Nxg3 {[%emt 0:04:40]} 15. hxg3 {[%emt 0:00:17]} Kg7 {[%emt 0:00:53]} 16. e4 {[%emt 0:05:26]} dxe4 {[%emt 0:03:55]} 17. Nxe4 {[%emt 0:00:40]} e5 {[%emt 0:01:12]} 18. Bc4 {[%emt 0:06:55]} Bf5 {[%emt 0:02:45]} 19. Bd5 {[%emt 0:07:54]} Qc7 {[%emt 0:03:09]} 20. a3 {[%emt 0:00:44]} Rhd8 {[%emt 0:06:46]} 21. Rfe1 {[%emt 0:03:15]} Rab8 {[%emt 0:06:53]} 22. c4 {[%emt 0:00:29]} Bg4 {[%emt 0:00:37]} 23. Nc3 {[%emt 0:03:58]} a6 {[%emt 0:00:22]} 24. Qa2 {[%emt 0:03:00]} Bf8 {[%emt 0:01:49]} 25. c5 {[%emt 0:06:08]} Ne7 {[%emt 0:04:30]} 26. Be6 {[%emt 0:04:59]} Bxf3 {[%emt 0:05:49]} 27. gxf3 {[%emt 0:00:37]} Qc6 {[%emt 0:00:10]} 28. Ne4 {[%emt 0:02:45]} Nf5 {[%emt 0:02:13]} 29. Bg8 {[%emt 0:17:56]} Rd7 {[%emt 0:04:53]} 30. Be6 {[%emt 0:01:55]} Rdd8 {[%emt 0:00:19]} 31. Bg8 {[%emt 0:07:50]} Rd7 {[%emt 0:05:58]} 32. Be6 {[%emt 0:07:44]} Rdd8 {[%emt 0:00:31]} 33. Bg8 {[%emt 0:03:38]} Qe8 {[%emt 0:08:19]} 34. Bd5 {[%emt 0:00:34]} Nd4 {[%emt 0:00:21]} 35. Kg2 {[%emt 0:00:55]} Be7 {[%emt 0:00:43]} 36. Rad1 {[%emt 0:00:57]} Qd7 {[%emt 0:00:15]} 37. Nc3 {[%emt 0:00:06]} b6 {[%emt 0:05:50]} 38. cxb6 {[%emt 0:00:43]} Rxb6 {[%emt 0:00:09]} 39. f4 {[%emt 0:00:46]} Rd6 {[%emt 0:02:07]} 40. fxe5 {[%emt 0:00:00]} fxe5 {[%emt 0:00:00]} 41. Be4 {[%emt 0:03:05]} Bg5 {[%emt 0:16:29]} 42. Ne2 {[%emt 0:05:54]} Nf3 {[%emt 0:12:37]} 43. Bxf3 {[%emt 0:03:24]} Rxd1 {[%emt 0:00:08]} 44. Rxd1 {[%emt 0:00:02]} Qxd1 {[%emt 0:00:08]} 45. Nf4 {[%emt 0:00:03]} Rd2 {[%emt 0:03:08]} 46. Qe6 {[%emt 0:10:39]} Qe1 {[%emt 0:00:40]} 47. Nh3 {[%emt 0:00:04]} Bf6 {[%emt 0:00:19]} 48. Bd5 {[%emt 0:00:34]} Rd1 {[%emt 0:03:45]} 49. Kh2 {[%emt 0:01:42]} e4 {[%emt 0:06:55]} 50. Qf7+ {[%emt 0:00:07]} Kh6 {[%emt 0:00:04]} 51. Qf8+ {[%emt 0:00:06]} Kh5 {[%emt 0:00:04]} 52. g4+ {[%emt 0:00:04]} Kxg4 {[%emt 0:00:12]} 53. Be6+ {[%emt 0:00:03]} Kh5 {[%emt 0:00:16]} 54. Nf4+ {[%emt 0:00:04]} 1/2-1/2

[Event "FIDE WYCC Open U14 2023"]
[Site "Montesilvano"]
[Date "2023.11.24"]
[Round "11.4"]
[White "Vetokhin, Savva"]
[Black "Rustamov, Rustam"]
[Result "1/2-1/2"]
[ECO "D38"]
[WhiteElo "2403"]
[BlackElo "2229"]
[Annotator "RC"]
[PlyCount "106"]
[EventDate "2023.11.13"]
[EventType "swiss"]
[EventCountry "ITA"]
[SourceTitle "playchess.com"]
[Source "ChessBase"]
[SourceQuality "1"]
[TimeControl "40/5400+30:1800+30"]

1. d4 {[%emt 0:02:40]} Nf6 {[%emt 0:00:07]} 2. c4 {[%emt 0:00:05]} e6 {[%emt 0:00:02]} 3. Nf3 {[%emt 0:00:06]} d5 {[%emt 0:00:04]} 4. Nc3 {[%emt 0:00:06]} Bb4 {[%emt 0:00:39]} 5. Bg5 {[%emt 0:00:13]} h6 {[%emt 0:00:20]} 6. Bxf6 {[%emt 0:00:05]} Qxf6 {[%emt 0:00:03]} 7. e3 {[%emt 0:00:08]} O-O {[%emt 0:00:27]} 8. Rc1 {[%emt 0:00:02]} dxc4 {[%emt 0:00:17]} 9. Bxc4 {[%emt 0:00:06]} c5 {[%emt 0:00:09]} 10. O-O {[%emt 0:00:10]} cxd4 {[%emt 0:01:29]} 11. Ne4 {[%emt 0:00:06]} Qf5 {[%emt 0:01:16]} 12. Ng3 {[%emt 0:03:43]} Qa5 {[%emt 0:00:55]} 13. exd4 {[%emt 0:02:45]} Nc6 {[%emt 0:00:51]} 14. Qe2 {[%emt 0:02:09]} Bd7 {[%emt 0:01:10]} 15. Rcd1 {[%emt 0:08:15]} Rad8 {[%emt 0:01:43]} 16. a3 {[%emt 0:04:43]} Bd6 {[%emt 0:02:30]} 17. Ne4 {[%emt 0:02:21]} Qc7 {[%emt 0:00:47]} 18. Bd3 {[%emt 0:02:39]} Rfe8 {[%emt 0:02:05]} 19. Rfe1 {[%emt 0:05:11]} Ne7 {[%emt 0:07:22]} 20. Nxd6 {[%emt 0:17:59]} Qxd6 {[%emt 0:00:03]} 21. Ne5 {[%emt 0:03:55]} Ba4 {[%emt 0:11:35]} 22. Rd2 {[%emt 0:02:49]} Nf5 {[%emt 0:10:33]} 23. Bxf5 {[%emt 0:04:35]} exf5 {[%emt 0:02:09]} 24. Qc4 {[%emt 0:01:30]} Bd7 {[%emt 0:04:05]} 25. Qxf7+ {[%emt 0:01:04]} Kh7 {[%emt 0:00:05]} 26. Red1 {[%emt 0:05:29]} Re7 {[%emt 0:01:31]} 27. Nc4 {[%emt 0:06:31]} Qe6 {[%emt 0:00:28]} 28. Qxe6 {[%emt 0:00:14]} Bxe6 {[%emt 0:00:04]} 29. Re1 {[%emt 0:02:05]} Rc7 {[%emt 0:00:53]} 30. Ne5 {[%emt 0:00:12]} Bd5 {[%emt 0:01:18]} 31. f3 {[%emt 0:01:47]} a5 {[%emt 0:01:17]} 32. Nd3 {[%emt 0:02:33]} Bb3 {[%emt 0:01:30]} 33. Nf4 {[%emt 0:01:55]} Rcd7 {[%emt 0:00:46]} 34. d5 {[%emt 0:11:16]} g5 {[%emt 0:02:16]} 35. Rd3 {[%emt 0:00:56]} a4 {[%emt 0:01:39]} 36. Ne6 {[%emt 0:03:14]} Rxd5 {[%emt 0:00:31]} 37. Rxb3 {[%emt 0:00:11]} axb3 {[%emt 0:00:12]} 38. Nxd8 {[%emt 0:00:06]} Rxd8 {[%emt 0:00:03]} 39. Re3 {[%emt 0:00:07]} Rd1+ {[%emt 0:00:32]} 40. Kf2 {[%emt 0:00:00]} Rd2+ {[%emt 0:00:00]} 41. Re2 {[%emt 0:00:08]} Rd1 {[%emt 0:00:37]} 42. Kg3 {[%emt 0:07:43]} Rb1 {[%emt 0:05:03]} 43. Rd2 {[%emt 0:03:28]} Kg6 {[%emt 0:01:40]} 44. f4 {[%emt 0:00:36]} Kh5 {[%emt 0:01:23]} 45. Rf2 {[%emt 0:00:25]} Kg6 {[%emt 0:01:40]} 46. Kf3 {[%emt 0:01:43]} Re1 {[%emt 0:00:32]} 47. fxg5 {[%emt 0:00:11]} hxg5 {[%emt 0:00:06]} 48. Rd2 {[%emt 0:00:02]} g4+ {[%emt 0:01:23]} 49. Kf2 {[%emt 0:01:43]} Rh1 {[%emt 0:00:20]} 50. Rd6+ {[%emt 0:05:54]} Kg5 {[%emt 0:00:16]} 51. Rb6 {[%emt 0:00:05]} Rc1 {[%emt 0:00:20]} 52. Rxb3 {[%emt 0:04:24]} Rc2+ {[%emt 0:00:03]} 53. Kf1 {[%emt 0:00:10]} Rc1+ {[%emt 0:00:09]} 1/2-1/2

[Event "FIDE WYCC Open U14 2023"]
[Site "Montesilvano"]
[Date "2023.11.24"]
[Round "11.5"]
[White "Haug, Havard"]
[Black "Agasarov, Benik"]
[Result "0-1"]
[ECO "B12"]
[WhiteElo "2223"]
[BlackElo "2360"]
[Annotator "RC"]
[PlyCount "56"]
[EventDate "2023.11.13"]
[EventType "swiss"]
[EventCountry "ITA"]
[SourceTitle "playchess.com"]
[Source "ChessBase"]
[SourceQuality "1"]
[TimeControl "40/5400+30:1800+30"]

1. e4 c6 {[%emt 0:03:29]} 2. d4 {[%emt 0:00:30]} d5 {[%emt 0:00:06]} 3. e5 {[%emt 0:00:21]} Bf5 {[%emt 0:00:13]} 4. h4 {[%emt 0:00:10]} h6 {[%emt 0:00:53]} 5. Bd3 {[%emt 0:00:58]} Bxd3 {[%emt 0:00:24]} 6. Qxd3 {[%emt 0:00:02]} e6 {[%emt 0:00:47]} 7. Nd2 {[%emt 0:02:58]} c5 {[%emt 0:03:02]} 8. dxc5 {[%emt 0:02:37]} Nd7 {[%emt 0:02:58]} 9. Ngf3 {[%emt 0:05:11]} Bxc5 {[%emt 0:03:56]} 10. c4 {[%emt 0:02:38]} Ne7 {[%emt 0:04:10]} 11. O-O {[%emt 0:04:50]} O-O {[%emt 0:01:35]} 12. cxd5 {[%emt 0:01:50]} Nxd5 {[%emt 0:05:00]} 13. Qe4 {[%emt 0:00:46]} f5 {[%emt 0:00:29]} 14. exf6 {[%emt 0:05:53]} Qxf6 {[%emt 0:05:47]} 15. Re1 {[%emt 0:09:02]} Nf4 {[%emt 0:00:30]} 16. Nb3 Nh3+ 17. gxh3 {[%emt 0:00:40]} Qxf3 {[%emt 0:00:36]} 18. Qxf3 {[%emt 0:00:08]} Rxf3 {[%emt 0:00:06]} 19. Nxc5 {[%emt 0:00:12]} Nxc5 {[%emt 0:00:05]} 20. Kg2 {[%emt 0:00:16]} Raf8 {[%emt 0:04:08]} 21. Be3 {[%emt 0:00:29]} Nd3 {[%emt 0:00:06]} 22. Re2 {[%emt 0:00:26]} R3f5 {[%emt 0:00:23]} 23. Rd1 {[%emt 0:02:40]} Rd5 {[%emt 0:00:40]} 24. Red2 {[%emt 0:06:28]} Rfd8 {[%emt 0:01:18]} 25. Kf1 {[%emt 0:04:36]} Nxb2 {[%emt 0:12:22]} 26. Rxd5 {[%emt 0:00:20]} exd5 {[%emt 0:00:08]} 27. Rb1 {[%emt 0:01:03]} Nc4 {[%emt 0:00:04]} 28. Bxa7 {[%emt 0:07:15]} Nd2+ {[%emt 0:00:34]} 0-1

[Event "FIDE WYCC Open U14 2023"]
[Site "Montesilvano"]
[Date "2023.11.24"]
[Round "11.6"]
[White "Dhruva Thota"]
[Black "Daakshin Arun"]
[Result "1/2-1/2"]
[ECO "B96"]
[WhiteElo "2192"]
[BlackElo "2342"]
[Annotator "RC"]
[PlyCount "85"]
[EventDate "2023.11.13"]
[EventType "swiss"]
[EventCountry "ITA"]
[SourceTitle "playchess.com"]
[Source "ChessBase"]
[SourceQuality "1"]
[TimeControl "40/5400+30:1800+30"]

1. e4 {[%emt 0:01:05]} c5 {[%emt 0:00:06]} 2. Nf3 {[%emt 0:00:05]} d6 {[%emt 0:00:04]} 3. Nc3 {[%emt 0:00:16]} Nf6 {[%emt 0:00:09]} 4. d4 {[%emt 0:00:09]} cxd4 {[%emt 0:00:04]} 5. Nxd4 {[%emt 0:00:14]} a6 {[%emt 0:00:04]} 6. Bg5 {[%emt 0:00:09]} e6 {[%emt 0:00:05]} 7. f4 {[%emt 0:00:33]} h6 {[%emt 0:00:22]} 8. Bh4 {[%emt 0:00:10]} Nbd7 {[%emt 0:01:02]} 9. Qf3 {[%emt 0:04:31]} e5 {[%emt 0:00:03]} 10. Nb3 {[%emt 0:04:28]} exf4 {[%emt 0:01:55]} 11. Bf2 {[%emt 0:08:55]} g5 {[%emt 0:01:26]} 12. h3 {[%emt 0:04:46]} Ne5 {[%emt 0:01:03]} 13. Qe2 {[%emt 0:02:00]} Qc7 {[%emt 0:07:21]} 14. Nd4 {[%emt 0:08:38]} Bg7 {[%emt 0:04:48]} 15. g3 {[%emt 0:03:47]} fxg3 {[%emt 0:00:58]} 16. Bxg3 {[%emt 0:00:07]} h5 {[%emt 0:05:29]} 17. O-O-O {[%emt 0:04:10]} h4 {[%emt 0:09:22]} 18. Bh2 {[%emt 0:07:46]} g4 {[%emt 0:06:17]} 19. Nf5 {[%emt 0:06:34]} Bxf5 {[%emt 0:00:55]} 20. Bxe5 {[%emt 0:01:13]} dxe5 {[%emt 0:02:49]} 21. exf5 {[%emt 0:00:12]} g3 {[%emt 0:01:03]} 22. Nd5 {[%emt 0:12:27]} Nxd5 {[%emt 0:00:50]} 23. Rxd5 {[%emt 0:00:03]} Bf6 {[%emt 0:04:38]} 24. Bg2 {[%emt 0:01:39]} Ke7 {[%emt 0:00:35]} 25. Qd2 {[%emt 0:05:29]} Rhd8 {[%emt 0:05:56]} 26. Qb4+ {[%emt 0:07:47]} Ke8 {[%emt 0:00:50]} 27. a4 {[%emt 0:01:37]} Rxd5 {[%emt 0:03:13]} 28. Bxd5 {[%emt 0:00:05]} Rd8 {[%emt 0:02:23]} 29. Rd1 {[%emt 0:03:34]} b6 {[%emt 0:06:09]} 30. Rd3 {[%emt 0:02:09]} Qc5 {[%emt 0:06:48]} 31. Qxc5 {[%emt 0:01:59]} bxc5 {[%emt 0:00:11]} 32. Bc6+ {[%emt 0:00:23]} Ke7 {[%emt 0:00:42]} 33. Rxd8 {[%emt 0:00:13]} Kxd8 {[%emt 0:00:04]} 34. Kd2 {[%emt 0:01:05]} e4 {[%emt 0:01:40]} 35. Bxe4 {[%emt 0:00:16]} Bxb2 {[%emt 0:00:05]} 36. Ke2 {[%emt 0:00:36]} Kc7 {[%emt 0:03:04]} 37. Bd5 {[%emt 0:03:00]} Kd6 {[%emt 0:02:28]} 38. Bxf7 {[%emt 0:01:21]} Ke5 {[%emt 0:00:04]} 39. Bc4 {[%emt 0:02:37]} a5 {[%emt 0:00:34]} 40. f6 {[%emt 0:00:00]} Kxf6 {[%emt 0:00:00]} 41. Kf3 {[%emt 0:01:35]} Ke5 {[%emt 0:00:22]} 42. Bb5 {[%emt 0:00:10]} Kd4 {[%emt 0:00:24]} 43. c4 {[%emt 0:00:06]} 1/2-1/2

[Event "FIDE WYCC Open U14 2023"]
[Site "Montesilvano"]
[Date "2023.11.24"]
[Round "11.7"]
[White "Arca, Christian Gian Karlo"]
[Black "Prokhorov, Aleksey"]
[Result "1/2-1/2"]
[ECO "A45"]
[WhiteElo "2347"]
[BlackElo "1869"]
[Annotator "RC"]
[PlyCount "80"]
[EventDate "2023.11.13"]
[EventType "swiss"]
[EventCountry "ITA"]
[SourceTitle "playchess.com"]
[Source "ChessBase"]
[SourceQuality "1"]
[TimeControl "40/5400+30:1800+30"]

1. d4 {[%emt 0:00:05]} Nf6 {[%emt 0:01:01]} 2. Bf4 {[%emt 0:00:07]} g6 {[%emt 0:00:58]} 3. Nc3 {[%emt 0:00:05]} d5 {[%emt 0:01:01]} 4. Nb5 {[%emt 0:01:27]} Na6 {[%emt 0:01:00]} 5. e3 {[%emt 0:00:18]} Bg7 {[%emt 0:01:00]} 6. Be2 {[%emt 0:00:21]} O-O {[%emt 0:01:02]} 7. h3 {[%emt 0:00:09]} c5 {[%emt 0:03:15]} 8. c3 {[%emt 0:00:10]} Bd7 {[%emt 0:02:47]} 9. a4 {[%emt 0:00:10]} c4 {[%emt 0:06:21]} 10. Nf3 {[%emt 0:00:26]} Qb6 {[%emt 0:01:58]} 11. b3 {[%emt 0:00:07]} Bxb5 {[%emt 0:18:32]} 12. axb5 {[%emt 0:00:56]} Qxb5 {[%emt 0:01:49]} 13. bxc4 {[%emt 0:14:50]} dxc4 {[%emt 0:00:11]} 14. Ne5 {[%emt 0:00:01]} Rac8 {[%emt 0:00:47]} 15. O-O {[%emt 0:04:14]} Nd5 {[%emt 0:02:07]} 16. Rb1 {[%emt 0:03:28]} Qe8 {[%emt 0:00:57]} 17. Rxb7 {[%emt 0:07:16]} Nxc3 {[%emt 0:03:07]} 18. Qd2 {[%emt 0:00:17]} Bxe5 {[%emt 0:06:28]} 19. Bxe5 {[%emt 0:04:19]} Nxe2+ {[%emt 0:05:03]} 20. Qxe2 {[%emt 0:01:03]} Qc6 {[%emt 0:20:41]} 21. Rxe7 {[%emt 0:04:01]} Nb4 {[%emt 0:02:02]} 22. e4 {[%emt 0:01:10]} Rfe8 {[%emt 0:06:09]} 23. d5 {[%emt 0:16:37]} Qc5 {[%emt 0:00:40]} 24. Rxe8+ {[%emt 0:00:07]} Rxe8 {[%emt 0:00:09]} 25. Ba1 {[%emt 0:00:00]} c3 {[%emt 0:05:56]} 26. Rc1 {[%emt 0:09:40]} Nxd5 {[%emt 0:04:55]} 27. Qf3 {[%emt 0:00:10]} Qa3 {[%emt 0:00:10]} 28. Rf1 {[%emt 0:00:40]} Nb6 {[%emt 0:00:43]} 29. Bxc3 {[%emt 0:01:36]} Rc8 {[%emt 0:00:09]} 30. Bd4 {[%emt 0:00:30]} Qxf3 {[%emt 0:00:06]} 31. gxf3 {[%emt 0:00:01]} Nc4 {[%emt 0:00:16]} 32. Ra1 {[%emt 0:02:56]} Nd2 {[%emt 0:00:14]} 33. Ra3 {[%emt 0:00:27]} a5 {[%emt 0:00:59]} 34. Kg2 {[%emt 0:00:02]} Nc4 {[%emt 0:00:36]} 35. Ra4 {[%emt 0:00:17]} Kf8 {[%emt 0:01:48]} 36. Bc3 {[%emt 0:01:10]} Ne3+ {[%emt 0:00:14]} 37. fxe3 {[%emt 0:00:06]} Rxc3 {[%emt 0:00:08]} 38. Rxa5 {[%emt 0:00:06]} Rxe3 {[%emt 0:00:09]} 39. Ra8+ {[%emt 0:00:17]} Kg7 {[%emt 0:00:09]} 40. Kg3 {[%emt 0:00:00]} h5 {[%emt 0:00:00]} 1/2-1/2

[Event "FIDE WYCC Open U14 2023"]
[Site "Montesilvano"]
[Date "2023.11.24"]
[Round "11.8"]
[White "Tabuenca Mendataurigoitia, Daniel"]
[Black "Hobson, Kenneth"]
[Result "1-0"]
[ECO "C68"]
[WhiteElo "2383"]
[BlackElo "2142"]
[Annotator "RC"]
[PlyCount "117"]
[EventDate "2023.11.13"]
[EventType "swiss"]
[EventCountry "ITA"]
[SourceTitle "playchess.com"]
[Source "ChessBase"]
[SourceQuality "1"]
[TimeControl "40/5400+30:1800+30"]

1. e4 {[%emt 0:00:02]} e5 {[%emt 0:00:14]} 2. Nf3 {[%emt 0:00:11]} Nc6 {[%emt 0:00:09]} 3. Bb5 {[%emt 0:00:07]} a6 {[%emt 0:00:43]} 4. Bxc6 {[%emt 0:00:07]} dxc6 {[%emt 0:00:06]} 5. O-O {[%emt 0:00:07]} Bg4 {[%emt 0:01:57]} 6. h3 {[%emt 0:00:09]} h5 {[%emt 0:00:20]} 7. d3 {[%emt 0:00:08]} Qf6 {[%emt 0:01:24]} 8. Nbd2 {[%emt 0:00:19]} Ne7 {[%emt 0:00:50]} 9. Nc4 {[%emt 0:00:16]} Bxf3 {[%emt 0:02:08]} 10. Qxf3 {[%emt 0:00:07]} Qxf3 {[%emt 0:00:07]} 11. gxf3 {[%emt 0:00:07]} Ng6 {[%emt 0:01:30]} 12. Be3 {[%emt 0:01:51]} O-O-O {[%emt 0:02:20]} 13. Rfb1 {[%emt 0:03:54]} Bd6 {[%emt 0:06:19]} 14. Kf1 {[%emt 0:02:43]} Rhf8 {[%emt 0:04:42]} 15. Ke2 {[%emt 0:02:11]} Ne7 {[%emt 0:06:56]} 16. Rg1 {[%emt 0:10:38]} g6 {[%emt 0:01:03]} 17. a4 {[%emt 0:04:54]} b6 {[%emt 0:06:58]} 18. c3 {[%emt 0:05:20]} c5 {[%emt 0:04:33]} 19. Bh6 {[%emt 0:16:24]} Rfe8 {[%emt 0:03:16]} 20. Bg5 {[%emt 0:01:45]} Kd7 {[%emt 0:02:51]} 21. f4 {[%emt 0:16:47]} Ke6 {[%emt 0:06:28]} 22. fxe5 {[%emt 0:02:06]} Bxe5 {[%emt 0:00:08]} 23. Ke3 {[%emt 0:02:28]} Bg7 {[%emt 0:04:43]} 24. Rad1 {[%emt 0:03:47]} b5 {[%emt 0:06:04]} 25. axb5 {[%emt 0:03:33]} axb5 {[%emt 0:00:07]} 26. Na5 {[%emt 0:00:27]} Kd7 {[%emt 0:05:48]} 27. Nb7 {[%emt 0:03:26]} Ra8 {[%emt 0:02:05]} 28. Nxc5+ {[%emt 0:01:14]} Kc6 {[%emt 0:00:05]} 29. Bxe7 {[%emt 0:01:34]} Rxe7 {[%emt 0:00:07]} 30. d4 {[%emt 0:00:26]} Ree8 {[%emt 0:06:02]} 31. Ra1 g5 {[%emt 0:06:37]} 32. Kd3 {[%emt 0:02:14]} f6 {[%emt 0:02:23]} 33. b4 {[%emt 0:00:34]} Bf8 {[%emt 0:01:09]} 34. Nb3 {[%emt 0:06:01]} Bd6 {[%emt 0:00:59]} 35. f3 {[%emt 0:01:20]} Bf4 {[%emt 0:01:53]} 36. c4 {[%emt 0:00:53]} bxc4+ {[%emt 0:00:20]} 37. Kxc4 {[%emt 0:00:02]} Bd6 {[%emt 0:03:10]} 38. b5+ {[%emt 0:01:59]} Kb6 {[%emt 0:00:43]} 39. Nc5 {[%emt 0:00:06]} Bxc5 {[%emt 0:00:19]} 40. dxc5+ {[%emt 0:00:00]} Kb7 {[%emt 0:00:00]} 41. Rgd1 {[%emt 0:01:25]} Rxa1 {[%emt 0:02:16]} 42. Rxa1 {[%emt 0:00:20]} g4 {[%emt 0:00:26]} 43. hxg4 {[%emt 0:02:22]} hxg4 {[%emt 0:00:29]} 44. Kd4 {[%emt 0:05:40]} gxf3 {[%emt 0:02:05]} 45. Rf1 {[%emt 0:00:06]} Rd8+ {[%emt 0:01:58]} 46. Ke3 {[%emt 0:06:25]} Re8 {[%emt 0:09:13]} 47. Rxf3 {[%emt 0:00:36]} Re6 {[%emt 0:02:35]} 48. Kd4 {[%emt 0:00:11]} c6 {[%emt 0:03:38]} 49. b6 {[%emt 0:00:36]} Kb8 {[%emt 0:01:26]} 50. Rh3 {[%emt 0:00:26]} Re7 {[%emt 0:01:50]} 51. Rh6 {[%emt 0:00:42]} Re6 {[%emt 0:00:52]} 52. Rh8+ {[%emt 0:00:11]} Kb7 {[%emt 0:00:05]} 53. Rh7+ {[%emt 0:00:15]} Kb8 {[%emt 0:00:12]} 54. Rc7 {[%emt 0:00:24]} Ka8 {[%emt 0:00:20]} 55. Rd7 {[%emt 0:00:05]} f5 {[%emt 0:00:43]} 56. exf5 {[%emt 0:00:06]} Re1 {[%emt 0:00:16]} 57. Rc7 {[%emt 0:00:22]} Rd1+ {[%emt 0:00:21]} 58. Ke4 {[%emt 0:00:05]} Re1+ {[%emt 0:00:40]} 59. Kf4 {[%emt 0:00:03]} 1-0